[Event "Superbet Blitz Poland 2022"]
[Site "Warsaw"]
[Date "2022.05.23"]
[Round "18.3"]
[White "Anand, Viswanathan"]
[Black "Wojtaszek, Radoslaw"]
[Result "1-0"]
[ECO "B50"]
[WhiteElo "2751"]
[BlackElo "2696"]
[Annotator "TA"]
[PlyCount "119"]
[EventDate "2022.05.22"]
[EventType "tourn"]
[EventCountry "POL"]
[SourceTitle "playchess.com"]
[Source "ChessBase"]
[SourceQuality "1"]
[TimeControl "300+2"]

{[%evp 13,119,4,0,-1,0,0,3,-17,-16,-107,-111,-104,-87,-87,-83,-66,-45,-45,-38,-71,-71,-73,-31,-32,-28,-80,-42,-50,-38,-52,-50,-58,40,40,41,47,41,41,67,74,74,33,65,56,65,64,48,46,46,45,69,67,76,58,75,51,52,52,52,52,51,51,152,152,152,120,214,159,226,197,241,226,420,413,372,300,259,197,5181,4818,29972,29973,29969,29965,29969,29970,29977,29978,29978,29979,29983,29984,29983,29981,29980,29968,29969,29969,29966,29968,29972,29974,29973,29971,29970,29969,29995,5160]} 1. e4 {[%emt 0:00:01]} c5 {[%emt 0:00:01]} 2. Nf3 {[%emt 0:00:02]} d6 {[%emt 0:00:01]} 3. Bc4 {[%emt 0:00:01]} Nf6 {[%emt 0:00:04]} 4. d3 {[%emt 0:00:01]} g6 {[%emt 0:00:05]} 5. O-O {[%emt 0:00:02]} Nc6 {[%emt 0:00:02]} 6. c3 {[%emt 0:00:03]} Bg7 {[%emt 0:00:05]} 7. h3 {[%emt 0:00:02]} O-O {[%emt 0:00:03]} 8. Re1 {[%emt 0:00:01] B50: Sicilian: 2...d6, Miscellaneous.} d5 {[%emt 0:00:19]} 9. exd5 {[%emt 0:00:07]} Nxd5 {[%emt 0:00:02]} 10. Nbd2 {[%emt 0:00:02] The position is equal.} b6 {[%emt 0:00:11] [#]} 11. Bb3 $146 {[%emt 0:00:07]} (11. Nb3 $11) ({Predecessor:} 11. Nf1 e6 12. Bg5 Qc7 13. Qd2 Bb7 14. Ne5 Na5 15. Ng4 f6 16. Bh6 Qf7 17. Bxg7 Kxg7 {0-1 (27) Neubauer,A (2131)-Pirker,G Graz 2002}) 11... Nf4 $17 {[%emt 0:00:13]} 12. d4 {[%emt 0:00:14]} cxd4 {[%emt 0:00:07]} 13. Ne4 {[%emt 0:00:03]} Ne6 {[%emt 0:00:09]} 14. Bd2 {[%emt 0:00:01]} Na5 {[%emt 0:00:17]} 15. Bxe6 {[%emt 0:00:03]} Bxe6 {[%emt 0:00:01]} 16. Nxd4 {[%emt 0:00:01]} Bd5 {[%emt 0:00:04]} 17. b3 {[%emt 0:00:20]} Nc6 {[%emt 0:00:14]} 18. Nxc6 {[%emt 0:00:14]} Bxc6 {[%emt 0:00:01] This bishop pair is nice.} 19. Rc1 {[%emt 0:00:05]} (19. f3 $11) 19... Qd7 {[%emt 0:00:23]} 20. Bg5 {[%emt 0:00:23]} Rfd8 {[%emt 0:00:14]} 21. Qe2 {[%emt 0:00:24]} h6 {[%emt 0:00:09]} 22. Bf4 {[%emt 0:00:08]} e5 {[%emt 0:00:20] [#]} (22... Qf5 $15 23. Bg3 Rd7) 23. Bxh6 $1 $14 {[%emt 0:00:05]} Bxe4 {[%emt 0:00:40]} 24. Bxg7 {[%emt 0:00:01] aiming for Bf6.} Bxg2 $1 {[%emt 0:00:11]} 25. Kxg2 {[%emt 0:00:04]} Kxg7 {[%emt 0:00:03]} 26. Qxe5+ {[%emt 0:00:01]} Kg8 {[%emt 0:00:06]} 27. Qf4 {[%emt 0:00:14] White is more active.} Qd5+ {[%emt 0:00:06]} 28. Kg1 {[%emt 0:00:11]} Rd7 {[%emt 0:00:10]} 29. c4 {[%emt 0:00:08]} Qd2 {[%emt 0:00:10]} 30. Qxd2 {[%emt 0:00:06]} (30. Re4 {seems wilder.} f5 31. Qxd2 Rxd2 32. Re7) 30... Rxd2 {[%emt 0:00:01][%mdl 4096] Endgame KRR-KRR} 31. a4 {[%emt 0:00:01]} Rc8 {[%emt 0:00:14]} 32. Rc3 {[%emt 0:00:06] Re7 is the strong threat.} Rc7 {[%emt 0:00:34] Prevents Re7.} 33. Rce3 {[%emt 0:00:04]} Rb2 {[%emt 0:00:06]} 34. Rd3 {[%emt 0:00:06]} Kg7 {[%emt 0:00:03]} 35. Kg2 {[%emt 0:00:03]} Rc5 {[%emt 0:00:04]} 36. Rf3 {[%emt 0:00:11]} Rg5+ {[%emt 0:00:01]} 37. Kf1 {[%emt 0:00:04]} Rf5 {[%emt 0:00:10] [#]} (37... Kf8 $14) 38. Rxf5 $1 $16 {[%emt 0:00:02]} gxf5 {[%emt 0:00:01] KR-KR} 39. Re3 {[%emt 0:00:04][%cal Oa4a5]} f4 {[%emt 0:00:04]} (39... Rc2 $16 {is a better defense.} 40. Kg2 Kg6) 40. Rd3 {[%emt 0:00:08]} Kf6 {[%emt 0:00:01] [#]} (40... Kg6 $16 41. Kg2 Kh5) 41. Kg2 $1 $18 {[%emt 0:00:02]} Ke5 {[%emt 0:00:20]} 42. Kf3 {[%emt 0:00:07]} a6 $2 {[%emt 0:00:03]} (42... Ke6 {might work better.} 43. h4 (43. Kxf4 Rxf2+ 44. Rf3 Rh2 $16) 43... Rc2) 43. h4 {[%emt 0:00:07]} Kf5 {[%emt 0:00:01]} 44. a5 {[%emt 0:00:09]} bxa5 {[%emt 0:00:02]} 45. Rc3 {[%emt 0:00:01] Threatens to win with c5.} Ke5 $2 {[%emt 0:00:05]} (45... Rb1 46. Rd3 f6 47. Rd5+ Kg6) 46. c5 {[%emt 0:00:08] White threatens c6 and mate.} Kd4 {[%emt 0:00:01] [#]} 47. c6 $1 {[%emt 0:00:01] White mates.} Kxc3 {[%emt 0:00:04]} (47... a4 48. c7) 48. c7 {[%emt 0:00:01]} Rxb3 {[%emt 0:00:02]} 49. c8=Q+ {[%emt 0:00:03] KQ-KR} Kb2+ {[%emt 0:00:01]} 50. Kg2 {[%emt 0:00:06]} a4 {[%emt 0:00:01]} 51. h5 {[%emt 0:00:10]} a3 {[%emt 0:00:07]} 52. h6 {[%emt 0:00:11]} f3+ {[%emt 0:00:01]} 53. Kh2 {[%emt 0:00:07]} Rb6 {[%emt 0:00:05]} 54. Qh3 {[%emt 0:00:18]} a2 {[%emt 0:00:03]} 55. h7 {[%emt 0:00:01]} a1=Q {[%emt 0:00:03]} 56. h8=Q+ {[%emt 0:00:02]} f6 {[%emt 0:00:01]} 57. Qd8 {[%emt 0:00:10]} Qa5 {[%emt 0:00:02]} 58. Qd4+ {[%emt 0:00:04]} Ka2 {[%emt 0:00:02]} 59. Qxf3 {[%emt 0:00:04]} Rb2 {[%emt 0:00:01]} 60. Qfd5+ {[%emt 0:00:05] Weighted Error Value: White=0.13 (very precise) /Black=0.36} (60. Qc4+ $142 Ka1 61. Qd1+ Rb1 62. Qdd4+ Rb2 63. Qc1+ Ka2 64. Qdxb2#) 1-0

[Event "Superbet Blitz Poland 2022"]
[Site "Warsaw"]
[Date "2022.05.23"]
[Round "18.4"]
[White "Shevchenko, Kirill"]
[Black "Duda, Jan-Krzysztof"]
[Result "0-1"]
[ECO "C02"]
[WhiteElo "2644"]
[BlackElo "2750"]
[Annotator "TA"]
[PlyCount "140"]
[EventDate "2022.05.22"]
[EventType "tourn"]
[EventCountry "POL"]
[SourceTitle "playchess.com"]
[Source "ChessBase"]
[SourceQuality "1"]
[TimeControl "300+2"]

{[%evp 12,140,29,-13,-24,-21,-10,-29,16,21,20,15,20,8,19,0,28,23,22,23,47,45,60,52,49,45,50,44,44,39,42,27,50,34,72,70,77,90,85,43,106,106,127,98,389,379,892,50,104,41,74,55,88,93,110,110,100,56,131,85,29988,0,177,30,30,31,29,35,36,0,8,0,0,0,0,0,0,-8,0,-16,0,-25,-28,-27,-6,-170,-18,-23,31,-142,-104,-162,-163,-688,-690,-675,-674,-674,-674,-1091,-929,-783,-806,-1450,-1449,-1394,-1395,-1076,-852,-777,-727,-804,-802,-802,-806,-753,-765,-962,-681,-913,-909,-944,-932,-1249,-1251,-1253,-1196,-1488,-1453,-29991,-29992]} 1. e4 {[%emt 0:00:01]} e6 {[%emt 0:00:00]} 2. d4 {[%emt 0:00:06]} d5 {[%emt 0:00:02]} 3. e5 {[%emt 0:00:04]} c5 {[%emt 0:00:01]} 4. c3 {[%emt 0:00:01]} Nc6 {[%emt 0:00:01]} 5. Nf3 {[%emt 0:00:01]} Qb6 {[%emt 0:00:04]} 6. Bd3 {[%emt 0:00:10]} Bd7 {[%emt 0:00:01]} 7. O-O {[%emt 0:00:07] 7.0-0 is better than 7.dxc5.} cxd4 {[%emt 0:00:03] C02: French: Advance Variation.} 8. Re1 {[%emt 0:00:01]} Nge7 {[%emt 0:00:17]} 9. h4 {[%emt 0:00:02]} Nf5 {[%emt 0:00:28] Black has an edge.} 10. Bxf5 {[%emt 0:00:02]} exf5 {[%emt 0:00:02]} 11. cxd4 {[%emt 0:00:01]} h6 {[%emt 0:00:09]} 12. Nc3 {[%emt 0:00:01]} Be6 {[%emt 0:00:01]} 13. Re3 {[%emt 0:00:34] [#]} Be7 $146 {[%emt 0:00:06]} ({Predecessor:} 13... Rc8 14. Ne2 Be7 15. h5 O-O 16. Ne1 Kh8 17. Rb3 Qc7 18. Bd2 Qd7 19. Nd3 Rc7 {1-0 (38) Eulering,G (2071)-Schmitz,M (1936) Rottach Egern 2021}) 14. Ne2 {[%emt 0:00:02]} Qd8 {[%emt 0:01:05]} 15. h5 {[%emt 0:00:22]} O-O {[%emt 0:00:01]} 16. Ne1 {[%emt 0:00:29]} a5 {[%emt 0:00:17]} 17. Nd3 {[%emt 0:00:06]} a4 {[%emt 0:00:36]} 18. Ndf4 {[%emt 0:00:32]} Bg5 {[%emt 0:00:12]} 19. Rg3 {[%emt 0:00:05]} Bxf4 {[%emt 0:00:13]} 20. Nxf4 {[%emt 0:00:27]} Kh8 {[%emt 0:00:01]} 21. Be3 {[%emt 0:00:07]} Ne7 {[%emt 0:00:11]} 22. Qd2 {[%emt 0:00:05]} Qb6 {[%emt 0:00:02]} 23. Nd3 {[%emt 0:00:13][%cal Oe3h6] Strongly threatening Bxh6!} Ng8 {[%emt 0:00:10]} 24. Nc5 {[%emt 0:00:24]} Rfc8 {[%emt 0:00:01]} 25. Rc1 {[%emt 0:00:01]} Qc6 {[%emt 0:00:07]} ({Better is} 25... Qa7 $14) 26. Rc3 $16 {[%emt 0:00:03]} Qb5 {[%emt 0:00:35]} 27. Qc2 {[%emt 0:00:07]} Ne7 $2 {[%emt 0:00:20][%mdl 8192]} (27... Qb6 $16 {was necessary.} 28. Qd2 (28. Nxa4 Rxc3 29. Nxc3 f4 $14) 28... Kh7) 28. Qc1 $1 $18 {[%emt 0:00:04][%cal Oe3h6]} Kh7 {[%emt 0:00:30] [#]} (28... f4) 29. Kh2 $2 {[%emt 0:01:05]} (29. Rxg7+ $1 $18 {[%mdl 512]} Kxg7 30. Bxh6+ Kh7 31. Nxe6) 29... Rc6 {[%emt 0:00:05] [#]} (29... Qe2 $1 $14) 30. Bf4 {[%emt 0:00:10]} (30. Bg5 $1 $16 {[%cal Rg5e7][%mdl 512]} f4 (30... Ng8 31. Kg1) 31. Bxf4 (31. Bxe7 fxg3+ 32. Kxg3 Kg8 $17) (31. Qxf4 Nf5 $11)) 30... Rg8 {[%emt 0:00:08]} 31. Qc2 {[%emt 0:00:04]} Qb4 {[%emt 0:00:07]} 32. Rgd3 {[%emt 0:00:24]} ({But not} 32. Qxa4 Qxa4 33. Nxa4 Rc4 34. Rxc4 dxc4 $14) 32... Ra8 {[%emt 0:00:03]} 33. a3 {[%emt 0:00:01]} Qb5 {[%emt 0:00:01]} 34. Rg3 {[%emt 0:00:01]} Ra7 {[%emt 0:00:03]} (34... b6 $14 35. Nb7 (35. Nxe6 fxe6 36. Rxc6 Qxc6 $14) 35... Rxc3 36. Rxc3 Rc8) 35. Qc1 {[%emt 0:00:02]} ({White should try} 35. Qd2 $1 {[%cal Og3g7] Black must now prevent Rxg7+!} Ra8 36. Bg5 $1) 35... Ng8 $2 {[%emt 0:00:04][%mdl 8192] [#]} (35... Ra8 $16) 36. Qc2 $2 {[%emt 0:00:02]} (36. Rxg7+ $3 {[%mdl 512] mates} Kxg7 37. Rg3+ Kh7 38. Bxh6 f4 {[#]} 39. Qxf4 $1 (39. Bxf4 Rxc5 40. Qb1+ Kh8 $17) 39... Nxh6 40. Nxe6 Rxe6 41. Qg5) 36... Kh8 $2 {[%emt 0:00:03]} (36... Ne7 $11) 37. Qd2 {[%emt 0:00:05]} (37. Nxe6 $18 fxe6 38. Rxc6 bxc6 39. Rg6) 37... b6 $11 {[%emt 0:00:06]} 38. Nd3 {[%emt 0:00:01]} Rac7 {[%emt 0:00:00]} 39. Nb4 {[%emt 0:00:01]} Rc4 {[%emt 0:00:00]} 40. Rcd3 {[%emt 0:00:05]} Qe8 {[%emt 0:00:01]} 41. Qd1 {[%emt 0:00:01]} Qe7 {[%emt 0:00:02] And now ...Qh4+ would win.} 42. Rh3 {[%emt 0:00:02] Prevents Qh4.} Qd7 {[%emt 0:00:02]} 43. Rhg3 {[%emt 0:00:01]} Kh7 {[%emt 0:00:00]} 44. Rd2 {[%emt 0:00:03]} Rc1 {[%emt 0:00:02][%cal Bc4c1,Bc1e1,Be1e4][%mdl 32]} 45. Qf3 {[%emt 0:00:01]} Re1 {[%emt 0:00:03]} 46. Nd3 {[%emt 0:00:03] Against Rcc1} (46. Re2 $5 {[%cal Re2e1]} Ra1 47. Bd2 $11) 46... Re4 {[%emt 0:00:03]} 47. Be3 {[%emt 0:00:02]} Rc4 {[%emt 0:00:04]} 48. Rd1 $2 {[%emt 0:00:00]} (48. Qd1 $11 {and White stays safe.}) 48... Rc2 $2 {[%emt 0:00:01]} (48... Ne7 $19 {Threatens to win with ...Nc6.} 49. Nf4 Nc6) 49. Rb1 {[%emt 0:00:04]} Qb5 {[%emt 0:00:03]} (49... Ne7 $11) 50. Nb4 $2 {[%emt 0:00:01]} (50. Qd1 $1 $14 {was forced to keep a grip.} Rh4+ 51. Rh3 Rxh3+ 52. gxh3) 50... Rc8 {[%emt 0:00:01]} 51. Kg1 {[%emt 0:00:04]} (51. Rh3 $17) 51... Ne7 $19 {[%emt 0:00:01]} 52. Re1 $2 {[%emt 0:00:01]} (52. Bd2) 52... f4 {[%emt 0:00:01]} 53. Bd2 {[%emt 0:00:06]} Rxe1+ {[%emt 0:00:01]} 54. Bxe1 {[%emt 0:00:00]} fxg3 {[%emt 0:00:01]} 55. Qxg3 {[%emt 0:00:00]} Nf5 {[%emt 0:00:02]} 56. Qf4 {[%emt 0:00:00]} Qe2 {[%emt 0:00:01][%csl LRb2,LRe1,LRh5]} 57. Bc3 {[%emt 0:00:01]} Qd1+ {[%emt 0:00:01]} 58. Kh2 {[%emt 0:00:01]} Qxh5+ {[%emt 0:00:01]} 59. Kg1 {[%emt 0:00:00]} g5 {[%emt 0:00:03]} 60. Qd2 {[%emt 0:00:02] Prevents Qd1+.} Qg4 {[%emt 0:00:01] aiming for ...Nh4.} 61. Nc2 {[%emt 0:00:04]} Nh4 {[%emt 0:00:02][%csl Gh4][%cal Rg4g2]} 62. Ne1 {[%emt 0:00:00]} Bf5 {[%emt 0:00:04]} 63. f3 {[%emt 0:00:04] Against Be4} Qf4 {[%emt 0:00:04]} 64. Qf2 {[%emt 0:00:01]} Qc1 {[%emt 0:00:01]} 65. Bd2 {[%emt 0:00:06]} Qd1 {[%emt 0:00:02]} 66. Kh2 {[%emt 0:00:03]} Bg6 {[%emt 0:00:05]} 67. f4 {[%emt 0:00:02]} Qh5 {[%emt 0:00:02]} 68. Kg1 {[%emt 0:00:01]} g4 {[%emt 0:00:01][%cal Bg5g4,Bg4g3][%mdl 32] ...Be4 is the strong threat.} 69. f5 {[%emt 0:00:07]} Nxf5 {[%emt 0:00:01] ( -> ...g3)} 70. Nd3 {[%emt 0:00:00]} g3 {[%emt 0:00:02] What a fight!  Weighted Error Value: White=0.60/Black=0.55} 0-1

[Event "Superbet Blitz Poland 2022"]
[Site "Warsaw"]
[Date "2022.05.23"]
[Round "18.5"]
[White "Gavrilescu, David"]
[Black "Korobov, Anton"]
[Result "0-1"]
[ECO "B53"]
[WhiteElo "2518"]
[BlackElo "2671"]
[Annotator "TA"]
[PlyCount "76"]
[EventDate "2022.05.22"]
[EventType "tourn"]
[EventCountry "POL"]
[SourceTitle "playchess.com"]
[Source "ChessBase"]
[SourceQuality "1"]
[TimeControl "300+2"]

{[%evp 9,76,7,10,7,27,22,23,21,4,0,0,-4,0,0,24,10,14,-6,-13,0,0,-2,-21,-11,0,-23,0,-23,-19,-31,0,0,0,0,0,-93,-94,-149,-160,-150,-153,-237,-244,-330,-306,-358,-363,-405,-295,-295,-295,-277,-295,-344,-336,-688,-669,-5385,-5297,-29978,-29979,-29984,-29984,-29989,-29990,-29990,-29991,-29991,-29983]} 1. e4 {[%emt 0:00:02]} c5 {[%emt 0:00:01]} 2. Nf3 {[%emt 0:00:01]} d6 {[%emt 0:00:01]} 3. d4 {[%emt 0:00:02]} cxd4 {[%emt 0:00:01]} 4. Qxd4 {[%emt 0:00:02]} Nf6 {[%emt 0:00:04]} 5. Nc3 {[%emt 0:00:01]} Nc6 {[%emt 0:00:02]} 6. Qe3 {[%emt 0:00:01] B53: Sicilian: 2...d6: Lines with Qxd4.} g6 {[%emt 0:00:08]} 7. Be2 {[%emt 0:00:02]} Bg7 {[%emt 0:00:01]} (7... Bg4 {looks sharper.} 8. Nd5 Bg7 9. O-O O-O) 8. O-O {[%emt 0:00:02] White has an edge.} O-O {[%emt 0:00:03]} 9. h3 {[%emt 0:00:08]} Nd7 $5 {[%emt 0:00:13][%mdl 4] An interesting side line.} 10. Rd1 {[%emt 0:00:02]} a6 {[%emt 0:00:10]} 11. a4 {[%emt 0:00:06]} b6 {[%emt 0:00:03]} (11... Nb4 $5 {[%cal Rb4c2]} 12. Qd2 Nc5 $11) 12. Nd5 {[%emt 0:00:06] [#]} e6 $146 {[%emt 0:00:18]} ({Predecessor:} 12... Bb7 13. Ra3 e6 14. Nf4 Nc5 15. Nd3 Qc7 16. b4 Nxe4 17. Qxe4 Nd4 18. Qe3 Nxc2 {0-1 (35) Nemeth,M (2451)-Gaehwiler,G (2421) Corte 2022}) 13. Nf4 {[%emt 0:00:19]} Nc5 {[%emt 0:00:15]} 14. Nd3 {[%emt 0:00:20]} Qc7 {[%emt 0:00:09]} 15. Nxc5 {[%emt 0:00:11]} bxc5 {[%emt 0:00:24]} 16. c3 {[%emt 0:00:03]} Rb8 {[%emt 0:00:10]} 17. Qf4 {[%emt 0:00:05]} Ne5 {[%emt 0:00:12]} 18. Nxe5 {[%emt 0:00:03]} Bxe5 {[%emt 0:00:01]} 19. Qh4 {[%emt 0:00:01]} Qc6 {[%emt 0:00:20]} 20. Bh6 {[%emt 0:00:18]} Rxb2 {[%emt 0:00:18]} 21. Bxf8 {[%emt 0:00:18]} Kxf8 {[%emt 0:00:02]} 22. Bf3 {[%emt 0:00:11]} (22. Qh6+ $11 Kg8 23. Qe3) 22... Kg7 $17 {[%emt 0:00:01] Active counter play! White is now going downhill.} 23. Rab1 {[%emt 0:00:05] [#]} (23. Qd8 $142) 23... Rxb1 $1 {[%emt 0:00:36]} 24. Rxb1 {[%emt 0:00:01]} Qxa4 {[%emt 0:00:01]} 25. Qd8 {[%emt 0:00:28] [#]} (25. Qg5 $17 {is a better defense.}) 25... Bd7 $1 $40 {[%emt 0:00:04][%mdl 128] Black goes for the king.} 26. c4 {[%emt 0:00:12]} Qc2 {[%emt 0:00:12] Really sharp!} 27. Rd1 {[%emt 0:00:18]} Ba4 {[%emt 0:00:14]} 28. Rxd6 {[%emt 0:00:17]} Qc1+ {[%emt 0:00:02]} 29. Rd1 {[%emt 0:00:02]} Bxd1 {[%emt 0:00:03]} ({And not} 29... Qxc4 30. Qg5 Qc3 31. Rb1 $17) 30. Qxd1 {[%emt 0:00:10]} Qxc4 {[%emt 0:00:07][%mdl 4096] Endgame KQB-KQB} 31. g3 {[%emt 0:00:08]} a5 {[%emt 0:00:02] ...a4 is the strong threat.} 32. h4 $2 {[%emt 0:00:37]} (32. Be2 Qxe4 33. Bd3) 32... a4 {[%emt 0:00:09] aiming for ...a3.} 33. h5 {[%emt 0:00:09]} a3 {[%emt 0:00:06] ( -> ...a2)} 34. Qd2 {[%emt 0:00:02]} h6 {[%emt 0:00:09] Black mates.} ({Much less strong is} 34... a2 35. h6+ Kh8 36. Qd8#) 35. hxg6 {[%emt 0:00:09]} a2 {[%emt 0:00:02]} 36. Qd7 {[%emt 0:00:10]} a1=Q+ {[%emt 0:00:05]} 37. Kh2 {[%emt 0:00:02] [#]} Bxg3+ $1 {[%emt 0:00:05]} 38. fxg3 {[%emt 0:00:08]} Qf6 {[%emt 0:00:05] Weighted Error Value: White=0.63/Black=0.06 (flawless)} 0-1